fUSD/lending_fUSD_20241016
["ID","MTS","AMOUNT","RATE_DAILY","PERIOD"]
[340334445,1729060232549,-150.0,0.0001074,2]
[340334446,1729060232558,-150.0,0.00010741,2]
[340334447,1729060232567,-150.0,0.00010742,2]
[340334448,1729060232577,-150.0,0.00010743,2]
[340334449,1729060232586,-150.0,0.00010744,2]
[340334450,1729060232596,-150.0,0.00010753,2]
[340334451,1729060232605,-150.0,0.00010757,2]
[340334452,1729060232615,-150.0,0.00010757,2]
[340334453,1729060232624,-150.0,0.0001076,2]
[340334454,1729060232633,-150.0,0.00010762,2]
[340334455,1729060232643,-150.0,0.00010773,2]
[340334456,1729060232652,-150.0,0.00010774,2]
[340334457,1729060232661,-150.0,0.0001078,2]
[340334458,1729060232670,-150.0,0.00010782,2]
[340334459,1729060232679,-150.0,0.000108,2]
[340334460,1729060232691,-150.0,0.00010806,2]
[340334461,1729060232701,-150.0,0.00010809,2]
[340334462,1729060232713,-150.0,0.00010813,2]
[340334463,1729060232722,-150.0,0.00010816,2]
[340334464,1729060232731,-150.0,0.00010822,2]
[340334465,1729060232741,-150.0,0.00010822,2]
[340334466,1729060232751,-150.0,0.00010827,2]
[340334467,1729060232761,-2936.52505428,0.00010829,2]
[340334468,1729060232772,-150.0,0.00010833,2]
[340334469,1729060232782,-150.0,0.00010833,2]
[340334470,1729060232791,-18145.51929503,0.00010835,2]
[340334471,1729060232801,-150.0,0.0001084,2]
[340334472,1729060232811,-150.0,0.0001084,2]
[340334473,1729060232820,-150.0,0.00010841,2]
[340334474,1729060232831,-150.0,0.00010842,2]
[340334475,1729060232841,-150.0,0.00010844,2]
[340334476,1729060232850,-150.0,0.00010844,2]
[340334477,1729060232859,-150.0,0.00010844,2]
[340334478,1729060232868,-150.0,0.00010845,2]
[340334479,1729060232877,-150.0,0.00010847,2]
[340334480,1729060232887,-150.0,0.00010848,2]
[340334481,1729060232896,-150.0,0.00010851,2]
[340334482,1729060232906,-150.0,0.00010854,2]
[340334483,1729060232915,-150.0,0.00010857,2]
[340334484,1729060232924,-150.0,0.00010869,2]
[340334485,1729060232934,-150.0,0.00010872,2]
[340334486,1729060232943,-150.0,0.00010876,2]
[340334487,1729060232957,-150.0,0.00010879,2]
[340334488,1729060232967,-150.0,0.0001088,2]
[340334489,1729060232977,-45394.39541314,0.00010885,2]
[340334490,1729060232986,-150.0,0.0001089,2]
[340334491,1729060232995,-150.0,0.00010893,2]
[340334492,1729060233006,-150.0,0.00010893,2]
[340334493,1729060233016,-150.0,0.00010895,2]
[340334494,1729060233025,-150.0,0.00010898,2]
[340334495,1729060233035,-2557.0399,0.00010899,2]
[340334496,1729060233044,-2334.2301,0.00010899,2]
[340334497,1729060233054,-2080.51858461,0.00010899,2]
[340334498,1729060233063,-2080.51858453,0.00010899,2]
[340334499,1729060233072,-2080.51858453,0.00010899,2]
[340334500,1729060233081,-2080.51858453,0.00010899,2]
[340334501,1729060233091,-2080.51858453,0.00010899,2]
[340334502,1729060233102,-2080.51858453,0.000109,2]
[340334503,1729060233112,-2080.51858453,0.000109,2]
[340334504,1729060233122,-2080.51858453,0.000109,2]
[340334505,1729060233132,-2080.51858453,0.000109,2]
[340334506,1729060233142,-332.22095072,0.000109,2]
[340334507,1729060233152,-384.42084379,0.000109,2]
[340334508,1729060233161,-253.30944126,0.000109,2]
[340334509,1729060233171,-159.10157046,0.000109,2]
[340334510,1729060233181,-338.46791679,0.000109,2]
[340334511,1729060233191,-7500.0,0.000109,2]
[340334512,1729060233200,-2080.51858453,0.000109,2]
[340334513,1729060233210,-14440.5131483,0.000109,2]
[340334514,1729060233220,-5036.68949859,0.000109,2]
[340334515,1729060233230,-564.02705471,0.000109,2]
[340334516,1729060233239,-322.60009065,0.000109,2]
[340334517,1729060233248,-2629.7743081,0.000109,2]
[340334518,1729060233258,-150.0,0.00010901,2]
[340334519,1729060233268,-150.0,0.00010908,2]
[340334520,1729060233278,-150.0,0.00010913,2]
[340334521,1729060233288,-150.0,0.00010915,2]
[340334522,1729060233298,-150.0,0.0001092,2]
[340334523,1729060233309,-150.0,0.00010921,2]
[340334524,1729060233319,-150.0,0.00010924,2]
[340334525,1729060233330,-150.0,0.00010924,2]
[340334526,1729060233344,-150.0,0.00010928,2]
[340334527,1729060233353,-150.0,0.00010929,2]
[340334528,1729060233363,-150.0,0.00010929,2]
[340334529,1729060233375,-150.0,0.00010939,2]
[340334530,1729060233385,-167.868,0.00010942,2]
[340334531,1729060233395,-150.0,0.00010942,2]
[340334532,1729060233405,-150.0,0.00010945,2]
[340334533,1729060233416,-150.0,0.00010945,2]
[340334534,1729060233427,-150.0,0.00010949,2]
[340334535,1729060233436,-150.0,0.0001095,2]
[340334536,1729060233445,-150.0,0.00010951,2]
[340334537,1729060233455,-150.0,0.00010953,2]
[340334538,1729060233464,-150.0,0.00010957,2]
[340334539,1729060233473,-150.0,0.00010958,2]
[340334540,1729060233482,-197.86,0.00010959,2]
[340334541,1729060233492,-161.46,0.00010959,2]
[340334542,1729060233501,-250.0,0.00010959,2]
[340334543,1729060233511,-150.0,0.00010959,2]
[340334544,1729060233521,-150.0,0.0001096,2]
[340334545,1729060233531,-150.0,0.00010964,2]
[340334546,1729060233541,-150.0,0.00010967,2]
[340334547,1729060233550,-150.0,0.00010969,2]
[340334548,1729060233560,-150.0,0.00010973,2]
[340334549,1729060233570,-150.0,0.00010981,2]
[340334550,1729060233580,-555.573,0.00010983,2]
[340334551,1729060233590,-5883.0,0.00010983,2]
[340334552,1729060233602,-8833.618,0.00010983,2]
[340334553,1729060233612,-150.0,0.00010983,2]
[340334554,1729060233622,-150.0,0.00010985,2]
[340334555,1729060233632,-150.0,0.00010987,2]
[340334556,1729060233641,-150.0,0.00010991,2]
[340334557,1729060233651,-150.0,0.00010996,2]
[340334558,1729060233661,-781.13492649,0.00010998,2]
[340334559,1729060233672,-93616.67733122,0.00010999,2]
[340334560,1729060233681,-24953.7694999,0.00010999,2]
[340334561,1729060233691,-5589.2784086,0.00010999,2]
[340334562,1729060233700,-18947.0876578,0.00010999,2]
[340334563,1729060233710,-2553.3262251,0.00010999,2]
[340334564,1729060233719,-516.0,0.00011,2]
[340334565,1729060233729,-33026.40614311,0.00011,2]
[340334569,1729060238322,-150.0,0.00010805,2]
[340334570,1729060238332,-1000.0,0.00010899,2]
[340334571,1729060238345,-9335.7651322,0.00011,2]
[340334572,1729060238363,-1557.48172343,0.00011,2]
[340334573,1729060238375,-550.32224774,0.00011,2]
[340334574,1729060238386,-253.7732008,0.00011,2]
[340334575,1729060238674,-5958.37468247,0.00011,2]
[340334600,1729060240398,-13253.22423378,0.00011,2]
[340334601,1729060240550,-2994.36697904,0.00011,2]
[340334602,1729060240564,-5250.70070712,0.00011,2]
[340334603,1729060240575,-552.38427905,0.00011,2]
[340334604,1729060242763,-150.225,0.00010987,2]
[340334605,1729060242787,-411235.77663624,0.00011,2]
[340334606,1729060242812,-759174.64429171,0.00011,2]
[340334607,1729060242836,-5876251.58988116,0.00011,2]
[340334608,1729060242859,-350.0,0.00011,2]
[340334609,1729060242879,-303.14,0.00011,2]
[340334610,1729060242903,-1346130.88649243,0.00011,2]
[340334611,1729060242927,-1004786.52121041,0.00011,2]
[340334612,1729060242952,-1418487.26180805,0.00011,2]
[340334613,1729060242973,-46019.79625111,0.00011,2]
[340334614,1729060242998,-3371904.7021366,0.00011,2]
[340334615,1729060243018,-255.0,0.00011,2]
[340334616,1729060243039,-290.619843,0.00011,2]
[340334617,1729060243065,-1008917.09219944,0.00011,2]
[340334618,1729060243086,-543.24,0.00011,2]
[340334619,1729060243109,-200.0,0.00011,2]
[340334620,1729060243132,-10000.0,0.00011,2]
[340334621,1729060243157,-1991486.72156891,0.00011,2]
[340334622,1729060243177,-360.0,0.00011,2]
[340334623,1729060243198,-719.6007,0.00011,2]
[340334624,1729060243219,-1000.0,0.00011,2]
[340334625,1729060243240,-435.0,0.00011,2]
[340334626,1729060243260,-960.8,0.00011,2]
[340334627,1729060243281,-250.0,0.00011,2]
[340334631,1729060243308,-288.6,0.00011,2]
[340334634,1729060243328,-2000.0,0.00011,2]
[340334637,1729060243353,-730.5,0.00011,2]
[340334651,1729060243575,-549.999999,0.00011007,2]
[340334652,1729060243587,-500.253974,0.00011007,2]
[340334653,1729060243662,-564.74894883,0.00011007,2]
[340334658,1729060244388,5883.70885618,0.00011,2]
[340334677,1729060257049,500.0,0.00010999,2]
[340334678,1729060257097,259.57178787,0.00010999,2]
[340334679,1729060257166,428.96288239,0.00010999,2]
[340334680,1729060260884,627.46,8.924e-05,2]
[340334681,1729060271001,158.93,0.00010959,2]
[340334683,1729060297385,2500.0,0.00010899,2]
[340334684,1729060307456,360.0,0.00011,2]
[340334686,1729060320969,488.92,0.00011,2]
[340334688,1729060346905,150.0,0.00010961,2]
[340334690,1729060358690,250.0,9.92e-05,2]
[340334691,1729060363717,780.147711,0.00010951,2]
[340334692,1729060369879,288.84,0.00010959,2]
[340334694,1729060377802,150.0,0.00010979,2]
[340334695,1729060380665,240.7,0.00010959,2]
[340334696,1729060391410,200.58,0.00010959,2]
[340334698,1729060395443,150.0,0.00027,60]
[340334699,1729060401949,167.15,0.00010959,2]
[340334700,1729060412458,835.79,0.00010959,2]
[340334701,1729060425375,1000.0,0.00010718,2]
[340334703,1729060438977,150.0,0.00010961,2]
[340334705,1729060468734,150.0,0.00010963,2]
[340334707,1729060475173,8285.9635,0.00010907,2]
[340334708,1729060475891,1366.66082806,0.00010941,2]
[340334710,1729060496234,150.0,0.0001085,2]
[340334711,1729060497664,500.0,8.22e-05,2]
[340334712,1729060499236,500.0,9.59e-05,2]
[340334713,1729060500899,500.0,0.0001096,2]
[340334714,1729060516652,500.0,8.22e-05,2]
[340334715,1729060516746,500.0,9.164e-05,2]
[340334716,1729060518477,500.0,0.0001096,2]
[340334717,1729060535365,500.0,9.164e-05,2]
[340334718,1729060537026,500.0,0.00010534,2]
[340334719,1729060539895,250.0,0.00010959,2]
[340334720,1729060555585,1573.81113697,0.00010906,2]
[340334721,1729060563397,158.28,0.00010959,2]
[340334723,1729060579807,336.92,0.00010735,2]
[340334724,1729060590111,150.0,0.00010965,2]
[340334725,1729060592220,5933.0035,0.00010941,2]
[340334728,1729060608453,359.0,0.00011,2]
[340334730,1729060626658,6536.23720091,0.00010941,2]
[340334731,1729060626682,2095.10299909,0.00010941,2]
[340334732,1729060627269,440.02,0.00011,2]
[340334734,1729060709795,155.0,0.00011,2]
[340334735,1729060711642,150.0,0.00010967,2]
[340334737,1729060741357,1697.00065192,0.000109,2]
[340334738,1729060745490,598.1517,0.00010934,2]
[340334741,1729060788397,173.79,0.00010959,2]
[340334743,1729060801236,208.30019926,0.00011,2]
[340334746,1729060833008,150.0,0.0001097,2]
[340334748,1729060855821,261.8181,0.00010917,2]
[340334749,1729060861347,9723.1084,0.00010906,2]
[340334750,1729060898123,596.08,8.948e-05,2]
[340334751,1729060922032,250.0,0.0001076,2]
[340334752,1729060931543,200.0,0.00010774,2]
[340334753,1729060933999,396.02,0.00011,2]
[340334754,1729060934455,3456.9875402,0.00011,2]
[340334755,1729060954404,150.0,0.00010972,2]
[340334756,1729060976823,1478.44824963,0.00010949,2]
[340334757,1729060988061,7529.3078984,0.00011,2]
[340334758,1729061015895,92984.7219381,0.00011,2]
[340334759,1729061036624,150.0,0.00010742,2]
[340334760,1729061069070,250.0,0.00010959,2]
[340334761,1729061075683,150.0,0.00010974,2]
[340334762,1729061085788,1000.0,0.00011,2]
[340334765,1729061157313,150.0,0.000108,2]
[340334766,1729061157371,150.0,0.00010871,2]
[340334767,1729061176074,250.74155853,0.00010817,2]
[340334768,1729061197272,150.0,0.00010976,2]
[340334770,1729061240305,356.42,0.00011,2]
[340334775,1729061318621,150.0,0.00010978,2]
[340334776,1729061342556,160.2,0.00010959,2]
[340334779,1729061424159,566.27,8.89e-05,2]
[340334780,1729061431675,-276.16624283,0.00011006,2]
[340334781,1729061431685,-258.24,0.00011006,2]
[340334782,1729061431694,-169.391,0.00011006,2]
[340334783,1729061431705,-300.0,0.00011006,2]
[340334784,1729061431714,-801.59581517,0.00011007,2]
[340334785,1729061431725,-5878.67181557,0.00011007,2]
[340334786,1729061431737,-1951.37137078,0.00011007,2]
[340334787,1729061431748,-1198.16775,0.00011007,2]
[340334788,1729061431759,-500.0,0.00011007,2]
[340334789,1729061431771,-255.5570155,0.00011007,2]
[340334790,1729061431782,-554.04576987,0.00011007,2]
[340334791,1729061431793,-420.67418206,0.00011007,2]
[340334792,1729061431805,-340.78735789,0.00011007,2]
[340334793,1729061432128,-703.37788318,0.00011007,2]
[340334795,1729061432141,-640.09000008,0.00011007,2]
[340334798,1729061432152,-31944.65811807,0.00011007,2]
[340334800,1729061432161,-5582.6277516,0.00011026,2]
[340334802,1729061432170,-70785.4371487,0.00011034,2]
[340334803,1729061432179,-2624.6903057,0.00011041,2]
[340334804,1729061432187,-288.0,0.00011049,2]
[340334805,1729061432196,-222.0,0.00011049,2]
[340334806,1729061432205,-500.0,0.00011073,2]
[340334807,1729061432214,-288.0,0.00011106,2]
[340334808,1729061432223,-566.27,0.00011154,2]
[340334809,1729061432232,-150.0,0.0001122,2]
[340334811,1729061432241,-150.99,0.0001122,2]
[340334812,1729061432422,-288.0,0.00011243,2]
[340334813,1729061432431,-1000.0,0.00011301,2]
[340334814,1729061432440,-2500.0,0.00011301,2]
[340334815,1729061432449,-2021.8030398,0.00011376,2]
[340334816,1729061432459,-416.13653214,0.00011377,2]
[340334817,1729061432468,-89805.1227443,0.00011401,2]
[340334818,1729061437493,-4590.90296544,0.00011401,2]
[340334819,1729061437505,-537.13002854,0.00011401,2]
[340334820,1729061437519,-49022.48890501,0.00011401,2]
[340334821,1729061437531,-815.25123414,0.00011401,2]
[340334822,1729061437546,-310.24010705,0.00011401,2]
[340334823,1729061437572,-30063.50740757,0.00011401,2]
[340334824,1729061437874,-68885.35660795,0.00011401,2]
[340334825,1729061437883,-500.0,0.00011473,2]
[340334826,1729061437894,-160.29765239,0.00011473,2]
[340334827,1729061437905,-500.0,0.000115,2]
[340334828,1729061437914,-158.28,0.00011507,2]
[340334829,1729061437923,-2751.0,0.00011507,2]
[340334830,1729061437937,-1710.03071806,0.00011507,2]
[340334831,1729061437947,-176.71,0.00011529,2]
[340334832,1729061437958,-500.0,0.00011573,2]
[340334833,1729061437968,-401.28969943,0.00011573,2]
[340334834,1729061437977,-755.88,0.000116,2]
[340334835,1729061437986,-150.0,0.000116,2]
[340334836,1729061437997,-755.88,0.000116,2]
[340334837,1729061438009,-359.29,0.000116,2]
[340334838,1729061438019,-429.69,0.000116,2]
[340334839,1729061438030,-150.0,0.000116,2]
[340334840,1729061438040,-798.33,0.000116,2]
[340334841,1729061438050,-150.0,0.000116,2]
[340334842,1729061438059,-755.88,0.000116,2]
[340334843,1729061438069,-150.0,0.000116,2]
[340334844,1729061438079,-764.29,0.000116,2]
[340334845,1729061438089,-151.28,0.000116,2]
[340334846,1729061438098,-150.0,0.000116,2]
[340334847,1729061438109,-837.15,0.000116,2]
[340334848,1729061438120,-150.0,0.000116,2]
[340334849,1729061438130,-150.0,0.000116,2]
[340334850,1729061438141,-359.24,0.000116,2]
[340334851,1729061438150,-320.61,0.000116,2]
[340334852,1729061438159,-150.0,0.000116,2]
[340334853,1729061438167,-150.0,0.000116,2]
[340334854,1729061438177,-862.38,0.000116,2]
[340334855,1729061438185,-150.0,0.000116,2]
[340334856,1729061438194,-150.0,0.000116,2]
[340334857,1729061438203,-755.88,0.000116,2]
[340334858,1729061438212,-150.23,0.000116,2]
[340334859,1729061438221,-150.0,0.000116,2]
[340334860,1729061438230,-150.0,0.000116,2]
[340334861,1729061438239,-424.17,0.000116,2]
[340334862,1729061438249,-359.24,0.000116,2]
[340334863,1729061438257,-535.12,0.000116,2]
[340334864,1729061438267,-429.63,0.000116,2]
[340334865,1729061438276,-150.0,0.000116,2]
[340334866,1729061438285,-150.0,0.000116,2]
[340334867,1729061438294,-429.63,0.000116,2]
[340334868,1729061438304,-150.0,0.000116,2]
[340334869,1729061438313,-150.0,0.000116,2]
[340334870,1729061438322,-755.88,0.000116,2]
[340334871,1729061438331,-150.0,0.000116,2]
[340334872,1729061438340,-424.17,0.000116,2]
[340334873,1729061438349,-535.12,0.000116,2]
[340334874,1729061438358,-150.0,0.000116,2]
[340334875,1729061438367,-179.19,0.000116,2]
[340334876,1729061438375,-150.0,0.000116,2]
[340334877,1729061438384,-359.24,0.000116,2]
[340334878,1729061438396,-150.0,0.000116,2]
[340334879,1729061438405,-301.72,0.000116,2]
[340334880,1729061438414,-429.63,0.000116,2]
[340334881,1729061438423,-359.24,0.000116,2]
[340334882,1729061438432,-150.0,0.000116,2]
[340334883,1729061438441,-150.0,0.000116,2]
[340334884,1729061438450,-150.0,0.000116,2]
[340334885,1729061438459,-150.0,0.000116,2]
[340334886,1729061438468,-424.17,0.000116,2]
[340334887,1729061438478,-755.88,0.000116,2]
[340334888,1729061438486,-429.63,0.000116,2]
[340334889,1729061438495,-150.0,0.000116,2]
[340334890,1729061438505,-150.0,0.000116,2]
[340334891,1729061438514,-535.12,0.000116,2]
[340334892,1729061438523,-302.48,0.000116,2]
[340334893,1729061438532,-150.0,0.000116,2]
[340334894,1729061438541,-150.0,0.000116,2]
[340334895,1729061438550,-535.12,0.000116,2]
[340334896,1729061438559,-424.17,0.000116,2]
[340334897,1729061438568,-755.88,0.000116,2]
[340334898,1729061438577,-359.24,0.000116,2]
[340334899,1729061438586,-150.0,0.000116,2]
[340334900,1729061438595,-150.0,0.000116,2]
[340334901,1729061438605,-429.63,0.000116,2]
[340334902,1729061438614,-150.0,0.000116,2]
[340334903,1729061438623,-434.7,0.000116,2]
[340334904,1729061438633,-151.78,0.000116,2]
[340334905,1729061438642,-150.5,0.000116,2]
[340334906,1729061438651,-424.17,0.000116,2]
[340334907,1729061438661,-363.48,0.000116,2]
[340334908,1729061438670,-150.0,0.000116,2]
[340334909,1729061438679,-150.38,0.000116,2]
[340334910,1729061438688,-150.6,0.000116,2]
[340334911,1729061438698,-755.88,0.000116,2]
[340334912,1729061438707,-312.71,0.000116,2]
[340334913,1729061438716,-359.24,0.000116,2]
[340334914,1729061438726,-150.0,0.000116,2]
[340334915,1729061438735,-150.0,0.000116,2]
[340334916,1729061438744,-424.17,0.000116,2]
[340334917,1729061438753,-150.0,0.000116,2]
[340334918,1729061438762,-755.88,0.000116,2]
[340334919,1729061438771,-429.63,0.000116,2]
[340334920,1729061438780,-150.0,0.000116,2]
[340334921,1729061438789,-424.22,0.000116,2]
[340334922,1729061438799,-151.33,0.000116,2]
[340334923,1729061438808,-848.13,0.000116,2]
[340334924,1729061438817,-150.0,0.000116,2]
[340334925,1729061438826,-150.0,0.000116,2]
[340334926,1729061438835,-300.0,0.000116,2]
[340334927,1729061438844,-535.12,0.000116,2]
[340334928,1729061438855,-150.0,0.000116,2]
[340334929,1729061438865,-429.63,0.000116,2]
[340334930,1729061438877,-150.4,0.000116,2]
[340334931,1729061438886,-755.88,0.000116,2]
[340334932,1729061438896,-359.24,0.000116,2]
[340334933,1729061438906,-755.98,0.000116,2]
[340334934,1729061438915,-429.63,0.000116,2]
[340334935,1729061438926,-755.98,0.000116,2]
[340334936,1729061438936,-150.0,0.000116,2]
[340334937,1729061438947,-150.0,0.000116,2]
[340334938,1729061438958,-535.12,0.000116,2]
[340334939,1729061438967,-424.17,0.000116,2]
[340334940,1729061438976,-359.24,0.000116,2]
[340334941,1729061438986,-150.0,0.000116,2]
[340334942,1729061438995,-150.0,0.000116,2]
[340334943,1729061439004,-755.98,0.000116,2]
[340334944,1729061439014,-150.0,0.000116,2]
[340334945,1729061439023,-755.98,0.000116,2]
[340334946,1729061439033,-407.4,0.000116,2]
[340334947,1729061439042,-150.0,0.000116,2]
[340334948,1729061439051,-359.24,0.000116,2]
[340334949,1729061439060,-429.63,0.000116,2]
[340334950,1729061439069,-150.0,0.000116,2]
[340334951,1729061439079,-535.12,0.000116,2]
[340334952,1729061439088,-429.04,0.000116,2]
[340334953,1729061439097,-150.0,0.000116,2]
[340334954,1729061439106,-429.63,0.000116,2]
[340334955,1729061439115,-533.68,0.000116,2]
[340334956,1729061439124,-359.24,0.000116,2]
[340334957,1729061439133,-150.0,0.000116,2]
[340334958,1729061439144,-424.17,0.000116,2]
[340334959,1729061439154,-753.92,0.000116,2]
[340334960,1729061439163,-150.0,0.000116,2]
[340334961,1729061439172,-500.0,0.00011904,2]
[340334962,1729061439181,-500.0,0.00011904,2]
[340334963,1729061439190,-178.0,0.00012,2]
[340334964,1729061439199,-600.0,0.00012,2]
[340334965,1729061439209,-150.0,0.00012012,2]
[340334966,1729061439218,-150.0,0.00012012,2]
[340334967,1729061439227,-150.0,0.00012012,2]
[340334968,1729061439237,-158.28,0.00012055,2]
[340334969,1729061439246,-1000.0,0.00012057,2]
[340334970,1729061439255,-336.92,0.00012077,2]
[340334971,1729061439264,-15380.92,0.00012087,2]
[340334972,1729061439273,-29999.99,0.00012087,2]
[340334973,1729061439283,-3502.37,0.00012087,2]
[340334974,1729061439292,-420.0,0.00012094,2]
[340334975,1729061439301,-200.0,0.00012121,2]
[340334976,1729061439311,-214.8200625,0.00012127,2]
[340334977,1729061439323,-255.0,0.00012275,2]
[340334979,1729061439335,-500.0,0.00012328,2]
[340334981,1729061439344,-600.0,0.00012329,2]
[340334983,1729061439354,-600.0,0.00012329,2]
[340334985,1729061439363,-604.56081618,0.00012329,2]
[340334987,1729061439373,-600.0,0.00012329,2]
[340334988,1729061439382,-600.0,0.00012329,2]
[340334989,1729061439392,-600.0,0.00012329,2]
[340334990,1729061439402,-600.0,0.00012329,2]
[340334991,1729061439411,-600.0,0.00012329,2]
[340334992,1729061439420,-600.0,0.00012329,2]
[340334993,1729061439429,-600.0,0.00012329,2]
[340334994,1729061439437,-600.0,0.00012329,2]
[340334995,1729061439446,-600.0,0.00012329,2]
[340334996,1729061439455,-600.0,0.00012329,2]
[340334997,1729061439465,-151.0,0.00012329,2]
[340334998,1729061439474,-151.0,0.00012329,2]
[340334999,1729061439483,-151.0,0.00012329,2]
[340335000,1729061439493,-183.82726467,0.00012329,2]
[340335001,1729061439504,-151.0,0.00012329,2]
[340335002,1729061439514,-151.0,0.00012329,2]
[340335003,1729061439523,-165.210553,0.00012329,2]
[340335004,1729061439533,-151.0,0.00012329,2]
[340335005,1729061439542,-151.0,0.00012329,2]
[340335006,1729061439553,-151.0,0.00012329,2]
[340335007,1729061439562,-151.0,0.00012329,2]
[340335008,1729061439571,-151.0,0.00012329,2]
[340335009,1729061439580,-151.0,0.00012329,2]
[340335010,1729061439589,-151.0,0.00012329,2]
[340335011,1729061439598,-151.0,0.00012329,2]
[340335012,1729061439607,-151.0,0.00012329,2]
[340335013,1729061439616,-151.0,0.00012329,2]
[340335014,1729061439625,-298.007902,0.00012329,2]
[340335015,1729061439634,-279.178078,0.00012329,2]
[340335016,1729061439645,-279.178078,0.00012329,2]
[340335017,1729061439654,-279.178078,0.00012329,2]
[340335018,1729061439663,-279.178078,0.00012329,2]
[340335019,1729061439672,-279.178078,0.00012329,2]
[340335020,1729061439681,-279.178078,0.00012329,2]
[340335021,1729061439690,-279.178078,0.00012329,2]
[340335022,1729061439699,-279.178078,0.00012329,2]
[340335023,1729061439709,-279.178078,0.00012329,2]
[340335024,1729061439718,-279.178078,0.00012329,2]
[340335025,1729061439727,-279.178078,0.00012329,2]
[340335026,1729061439736,-279.178078,0.00012329,2]
[340335027,1729061439745,-151.0,0.00012329,2]
[340335028,1729061439754,-151.0,0.00012329,2]
[340335029,1729061439764,-151.0,0.00012329,2]
[340335030,1729061439773,-151.0,0.00012329,2]
[340335031,1729061439782,-151.0,0.00012329,2]
[340335032,1729061439791,-151.0,0.00012329,2]
[340335033,1729061439800,-216.794161,0.00012329,2]
[340335034,1729061439809,-151.0,0.00012329,2]
[340335035,1729061439819,-151.0,0.00012329,2]
[340335036,1729061439828,-151.0,0.00012329,2]
[340335037,1729061439837,-151.0,0.00012329,2]
[340335038,1729061439846,-152.412688,0.00012329,2]
[340335039,1729061439858,-151.0,0.00012329,2]
[340335040,1729061439867,-151.0,0.00012329,2]
[340335041,1729061439876,-151.0,0.00012329,2]
[340335042,1729061439885,-151.0,0.00012329,2]
[340335043,1729061439895,-151.0,0.00012329,2]
[340335044,1729061439906,-151.0,0.00012329,2]
[340335045,1729061439915,-151.0,0.00012329,2]
[340335046,1729061439926,-298.428316,0.00012329,2]
[340335047,1729061439936,-151.0,0.00012329,2]
[340335048,1729061439947,-151.0,0.00012329,2]
[340335049,1729061439956,-151.0,0.00012329,2]
[340335050,1729061439965,-151.0,0.00012329,2]
[340335051,1729061439976,-151.0,0.00012329,2]
[340335052,1729061439987,-151.0,0.00012329,2]
[340335053,1729061439996,-151.0,0.00012329,2]
[340335054,1729061440006,-151.0,0.00012329,2]
[340335055,1729061440017,-151.0,0.00012329,2]